fUSD/lending_fUSD_20240627
["ID","MTS","AMOUNT","RATE_DAILY","PERIOD"]
[330468929,1719465032423,-168.36,0.00012713,2]
[330468930,1719465032432,-160.27755311,0.00012715,2]
[330468931,1719465032441,-1196.78,0.00012715,2]
[330468932,1719465032449,-239.12,0.00012738,2]
[330468933,1719465032458,-150.0,0.00012745,2]
[330468934,1719465032467,-250.0,0.00012745,2]
[330468935,1719465032478,-239.12,0.00012772,2]
[330468936,1719465032487,-489.31770829,0.00012802,2]
[330468937,1719465032496,-300.25025617,0.00012802,2]
[330468938,1719465032505,-239.12,0.00012806,2]
[330468939,1719465032514,-160.27755311,0.00012817,2]
[330468940,1719465032524,-488.72,0.00012826,2]
[330468941,1719465032533,-239.12,0.0001284,2]
[330468942,1719465032542,-177.78,0.00012869,2]
[330468943,1719465032552,-239.12,0.00012874,2]
[330468944,1719465032560,-239.12,0.00012908,2]
[330468945,1719465032569,-160.27755311,0.00012918,2]
[330468946,1719465032578,-239.12,0.00012942,2]
[330468947,1719465032587,-239.12,0.00012976,2]
[330468948,1719465032596,-239.12,0.0001301,2]
[330468949,1719465032605,-160.27755311,0.0001302,2]
[330468950,1719465032615,-160.27755311,0.00013122,2]
[330468951,1719465032624,-420.0,0.00013135,2]
[330468952,1719465032634,-160.27755311,0.00013223,2]
[330468953,1719465032643,-125.71335294,0.00013325,2]
[330468954,1719465032656,-34.56420017,0.00013325,2]
[330468955,1719465032667,-499.99,0.00013364,2]
[330468956,1719465032676,-707.28,0.0001339,2]
[330468957,1719465032685,-160.27755311,0.00013427,2]
[330468958,1719465032695,-100.80856781,0.00013516,2]
[330468959,1719465032709,-373.48119077,0.00013516,2]
[330468960,1719465032718,-160.27755311,0.00013528,2]
[330468961,1719465032730,-202.11869108,0.00013543,3]
[330468962,1719465032739,-319346.0,0.00013583,2]
[330468963,1719465032748,-1284.0881,0.00013621,2]
[330468964,1719465032757,-160.27755311,0.0001363,2]
[330468965,1719465032768,-858.08,0.00013699,2]
[330468966,1719465032777,-353.54,0.00013699,2]
[330468967,1719465032786,-154.68170655,0.00013699,2]
[330468968,1719465032795,-877.64049489,0.0001376,2]
[330468969,1719465032804,-877.6404949,0.0001376,2]
[330468970,1719465032814,-690.4291,0.00013799,2]
[330468971,1719465032823,-412.55586859,0.00013802,2]
[330468972,1719465032832,-210.0,0.00013846,2]
[330468973,1719465032841,-402.09118776,0.0001386,2]
[330468974,1719465032851,-266.17183068,0.00013889,2]
[330468975,1719465032861,-319.05,0.0001389,2]
[330468976,1719465032871,-644.05,0.00013898,2]
[330468977,1719465032880,-35621.8468,0.00013899,2]
[330468978,1719465032889,-642.0598933,0.00013899,2]
[330468979,1719465032899,-769.14242717,0.00013899,2]
[330468980,1719465032908,-336.4423426,0.00013899,2]
[330468981,1719465032918,-769.14242716,0.000139,2]
[330468982,1719465032928,-172.59072584,0.000139,2]
[330468983,1719465032938,-2231.83358772,0.000139,2]
[330468984,1719465032947,-319.09702618,0.000139,2]
[330468985,1719465032959,-450.04540098,0.000139,2]
[330468986,1719465032968,-276.91190749,0.00013989,2]
[330468987,1719465032980,-26909.00848643,0.00013999,2]
[330468988,1719465033006,-3142.88092348,0.00013999,2]
[330468989,1719465033055,-911.00258317,0.00013999,2]
[330468990,1719465033067,-259.37769393,0.00013999,2]
[330468991,1719465033089,-692.30637745,0.00013999,2]
[330468992,1719465033101,-308.11957843,0.00013999,2]
[330468993,1719465033126,-1536.45624291,0.00013999,2]
[330468994,1719465033138,-61384.00000001,0.00013999,2]
[330468996,1719465037523,-536.23088223,0.00012802,2]
[330468997,1719465037533,-237.81983395,0.00013999,2]
[330468998,1719465037545,-31778.36654774,0.00013999,2]
[330468999,1719465037558,-6842.5,0.00013999,2]
[330469000,1719465037570,-7576.60827931,0.00013999,2]
[330469001,1719465037593,-939.46473459,0.00013999,2]
[330469002,1719465037637,-451.57864314,0.00013999,2]
[330469003,1719465037691,-528.39896365,0.00013999,2]
[330469004,1719465037703,-484.04490237,0.00013999,2]
[330469005,1719465037752,-1340.26476761,0.00013999,2]
[330469006,1719465037765,-1258.28539142,0.00013999,2]
[330469007,1719465037776,-3781.99999999,0.00013999,2]
[330469008,1719465037790,-397430.1487243,0.00013999,2]
[330469009,1719465037800,-712573.4991227,0.00014,2]
[330469010,1719465037820,-4474.43573524,0.00014,2]
[330469011,1719465037971,-1000.12448016,0.00014,2]
[330469016,1719465039480,-1822.09764027,0.00014,2]
[330469020,1719465039520,-18097.91693935,0.00014,2]
[330469021,1719465039529,-200.0,0.00014,2]
[330469022,1719465039540,-9999.99,0.00014,2]
[330469023,1719465039552,-2000.0,0.00014,2]
[330469024,1719465039562,-200.0,0.00014,2]
[330469025,1719465039572,-1013.0,0.00014,2]
[330469026,1719465039581,-200.0,0.00014,2]
[330469027,1719465039591,-1504.83884,0.00014,2]
[330469028,1719465039601,-200.0,0.00014,2]
[330469029,1719465039611,-155.14906403,0.00014099,2]
[330469030,1719465039620,-200.0,0.0001414,2]
[330469031,1719465039630,-2000.0,0.0001414,2]
[330469032,1719465039640,-200.0,0.0001414,2]
[330469033,1719465039650,-200.0,0.0001414,2]
[330469034,1719465039660,-200.0,0.0001414,2]
[330469035,1719465039671,-527.96,0.00014178,2]
[330469036,1719465039681,-497.361826,0.00014247,2]
[330469037,1719465039691,-1000.0,0.00014254,2]
[330469038,1719465039701,-200.0,0.00014281,2]
[330469039,1719465039711,-2000.0,0.00014281,2]
[330469040,1719465039721,-200.0,0.00014281,2]
[330469041,1719465039734,-200.0,0.00014281,2]
[330469042,1719465039744,-858.08,0.00014384,2]
[330469043,1719465039753,-587.0,0.00014419,2]
[330469044,1719465039765,-200.0,0.00014424,2]
[330469045,1719465039774,-1216.97350736,0.00014424,2]
[330469046,1719465039784,-200.0,0.00014424,2]
[330469047,1719465039794,-200.0,0.00014424,2]
[330469048,1719465039804,-2231.83358763,0.00014716,2]
[330469049,1719465039814,-1000.8485,0.00014899,2]
[330469050,1719465039823,-584.60968985,0.000149,2]
[330469051,1719465039832,-276.91190749,0.0001499,2]
[330469052,1719465039842,-276.91190749,0.0001499,2]
[330469053,1719465039853,-1318.8502609,0.00014999,2]
[330469054,1719465039863,-1106.10866471,0.00014999,5]
[330469055,1719465039874,-277889.3798404,0.00015,2]
[330469060,1719465040032,-357.90174084,0.00015,2]
[330469062,1719465040053,-755.0,0.00015,2]
[330469109,1719465510584,381.3587829,0.00025,60]
[330469110,1719466186469,217.54,0.00025,60]
[330469119,1719466231841,-300.0,0.00011097,2]
[330469121,1719466231851,-375.6676273,0.00011098,2]
[330469122,1719466231895,-2648.48646491,0.00011098,2]
[330469123,1719466231904,-5379.96919912,0.00011098,2]
[330469124,1719466231913,-690.10215601,0.00011098,2]
[330469125,1719466231922,-482.71584201,0.00011098,2]
[330469126,1719466231932,-266.17183068,0.00011098,2]
[330469127,1719466231941,-4787.81704601,0.00011098,2]
[330469128,1719466231950,-3618.97838296,0.00011199,2]
[330469129,1719466231961,-545.95,0.00011828,2]
[330469130,1719466231970,-420.0,0.00012193,2]
[330469131,1719466231979,-220.11,0.0001308,2]
[330469132,1719466231988,-150.0,0.00013217,2]
[330469133,1719466231998,-250.0,0.0001322,2]
[330469134,1719466232007,-23890.0,0.00013245,2]
[330469135,1719466232016,-499.99,0.00013245,2]
[330469136,1719466232025,-2000.0,0.0001328,3]
[330469137,1719466232035,-250.0,0.00013324,2]
[330469138,1719466232044,-1206.01,0.00013324,2]
[330469139,1719466232053,-587.0,0.00013398,2]
[330469140,1719466232063,-1000.0,0.0001344,2]
[330469141,1719466232073,-8181.5786,0.00013483,2]
[330469142,1719466232082,-2540.3561,0.00013483,2]
[330469143,1719466232091,-1733.48,0.00013637,2]
[330469144,1719466232100,-683.07,0.00013699,2]
[330469145,1719466232109,-500.0,0.00013699,2]
[330469146,1719466232119,-286.57,0.00013699,2]
[330469147,1719466232128,-220.11,0.00013761,2]
[330469148,1719466232138,-190.74,0.00013796,2]
[330469149,1719466232147,-168.75,0.00013807,2]
[330469150,1719466232156,-549.1849,0.00013899,2]
[330469151,1719466232166,-3355.7269,0.00013899,2]
[330469152,1719466232175,-336.44234257,0.00013899,2]
[330469153,1719466232184,-3116.17339962,0.00013899,2]
[330469154,1719466232194,-160.2038416,0.00013911,2]
[330469155,1719466232203,-210.58344956,0.00013989,2]
[330469156,1719466232212,-307.22,0.00013989,3]
[330469157,1719466232221,-231587.56937205,0.00013999,2]
[330469158,1719466232271,-5637.52280752,0.00013999,2]
[330469159,1719466232283,-61501.0,0.00013999,2]
[330469175,1719466237856,-249066.54049431,0.00013999,2]
[330469176,1719466237866,-545.95,0.00014092,2]
[330469177,1719466237875,-160.20384157,0.00014241,2]
[330469178,1719466237885,-683.07,0.00014384,2]
[330469179,1719466237895,-160.20384157,0.0001457,2]
[330469180,1719466237905,-823.0,0.00014721,2]
[330469181,1719466237915,-176.85,0.00014759,2]
[330469182,1719466237925,-300.76,0.00014767,2]
[330469183,1719466237935,-354.51,0.00014767,2]
[330469184,1719466237944,-164.7,0.00014767,2]
[330469185,1719466237954,-354.51,0.00014767,2]
[330469186,1719466237965,-164.7,0.00014767,2]
[330469187,1719466237974,-354.51,0.00014767,2]
[330469188,1719466237983,-164.7,0.00014767,2]
[330469189,1719466237993,-151.82,0.00014767,2]
[330469190,1719466238002,-150.0,0.00014767,2]
[330469191,1719466238012,-150.0,0.00014767,2]
[330469192,1719466238022,-150.0,0.00014767,2]
[330469193,1719466238032,-150.0,0.00014767,2]
[330469194,1719466238042,-150.0,0.00014767,2]
[330469195,1719466238051,-150.0,0.00014767,2]
[330469196,1719466238060,-500.0,0.00014879,2]
[330469197,1719466238070,-200.0,0.00014879,2]
[330469198,1719466238080,-500.0,0.0001488,2]
[330469199,1719466238089,-200.0,0.0001488,2]
[330469200,1719466238099,-7500.0,0.0001489,2]
[330469201,1719466238108,-1069.56622233,0.000149,2]
[330469202,1719466238117,-5322.2813,0.000149,2]
[330469203,1719466238127,-5277.5685,0.000149,2]
[330469205,1719466238137,-159.44500209,0.000149,2]
[330469206,1719466238146,-323.1997,0.000149,2]
[330469207,1719466238156,-3768.5956,0.000149,2]
[330469208,1719466238166,-24525.1868,0.000149,2]
[330469209,1719466238176,-188.6668366,0.000149,2]
[330469210,1719466238186,-160.20384157,0.000149,2]
[330469211,1719466238196,-3481.00960679,0.000149,2]
[330469212,1719466238206,-332.0137697,0.00014989,2]
[330469213,1719466238216,-151.6868763,0.00014989,2]
[330469214,1719466238226,-3604.1870595,0.00014989,2]
[330469215,1719466238235,-27672.6017556,0.00014989,2]
[330469216,1719466238245,-4177.4399732,0.00014989,2]
[330469217,1719466238255,-210.58344956,0.0001499,2]
[330469218,1719466238264,-332.0137697,0.0001499,2]
[330469219,1719466238275,-151.6868763,0.0001499,2]
[330469220,1719466238285,-3001.9642118,0.0001499,2]
[330469221,1719466238295,-23048.7926257,0.0001499,2]
[330469222,1719466238304,-3481.2487169,0.0001499,2]
[330469223,1719466238314,-774.9228964,0.00014999,2]
[330469224,1719466238324,-154.42253221,0.00014999,2]
[330469225,1719466238339,-688.47542515,0.00014999,2]
[330469226,1719466238349,-754.0,0.00015,2]
[330469227,1719466238359,-918173.64806809,0.00015,2]
[330469229,1719466239916,-2382.51686404,0.00014499,2]
[330469230,1719466239927,-70966.71274743,0.00015,2]
[330469231,1719466239939,-242655.73965459,0.00015,2]
[330469232,1719466239953,-3734.42797783,0.00015,2]
[330469233,1719466239964,-512.81802929,0.00015,2]
[330469275,1719466243027,-210.58344957,0.00013989,2]
[330469276,1719466243043,-10322.43905043,0.00015,2]
[330469281,1719466246182,-2223.61110454,0.00013992,2]
[330469282,1719466246191,-388.77273063,0.00015,2]
[330469319,1719466452732,2181.04861847,0.00011,2]
[330469320,1719466520816,19813.39655712,0.00011,2]
[330469321,1719466539447,300.25025617,0.00011,2]
[330469323,1719466550061,300.25025617,0.00011,2]
[330469324,1719466598770,19335.54418734,0.00011,2]
[330469325,1719466681775,252.19604064,0.00011,2]
[330469326,1719467417843,526.38,0.00010898,2]
[330469327,1719467426358,2465.0,0.00025,60]
[330469333,1719467432399,-428.45648914,0.00011098,2]
[330469334,1719467432411,-3658.6,0.00011098,2]
[330469335,1719467432430,-365.66990622,0.00011098,2]
[330469336,1719467432439,-35.95009374,0.00011098,2]
[330469339,1719467432527,-2994.79654773,0.00011098,2]
[330469340,1719467432536,-157.1032648,0.00011098,2]
[330469341,1719467432545,-9046.79364088,0.000112,2]
[330469342,1719467432554,-626.93038831,0.0001251,2]
[330469343,1719467432564,-190.74,0.00012629,2]
[330469344,1719467432573,-200.0,0.00012706,2]
[330469345,1719467432582,-1240.58,0.0001286,2]
[330469346,1719467432593,-600.30000237,0.00013,2]
[330469347,1719467432602,-250.0,0.00013043,2]
[330469348,1719467432611,-150.0,0.00013096,2]
[330469349,1719467432620,-150.0,0.00013127,2]
[330469350,1719467432629,-5973.5,0.00013128,2]
[330469351,1719467432639,-299.99,0.00013128,2]
[330469352,1719467432648,-7849.05706454,0.00013128,2]
[330469353,1719467432658,-526.38,0.00013162,2]
[330469354,1719467432667,-2000.0,0.00013292,3]
[330469355,1719467432677,-4791.53,0.00013292,2]
[330469356,1719467432686,-4729.16,0.00013292,2]
[330469357,1719467432695,-1000.0,0.00013367,2]
[330469358,1719467432704,-499.99,0.00013367,2]
[330469359,1719467432714,-526.70381718,0.00013472,2]
[330469360,1719467432723,-1000.0,0.000135,2]
[330469361,1719467432733,-474.28975858,0.00013543,2]
[330469362,1719467432742,-150.99,0.00013669,2]
[330469363,1719467432751,-286.57,0.00013699,2]
[330469364,1719467432760,-409.84,0.00013699,2]
[330469365,1719467432769,-155.06,0.0001371,2]
[330469366,1719467432778,-430.47767915,0.00013849,2]
[330469367,1719467432787,-219.97,0.0001389,2]
[330469368,1719467432796,-1772.2131483,0.00013899,2]
[330469369,1719467432805,-7500.0,0.000139,2]
[330469370,1719467432815,-2083.43566776,0.000139,2]
[330469371,1719467432824,-336.44234257,0.000139,2]
[330469372,1719467432834,-314.77,0.00013989,3]
[330469373,1719467432843,-157.38,0.00013989,3]
[330469374,1719467432852,-472.17,0.00013989,3]
[330469375,1719467432861,-210167.89516419,0.00013999,2]
[330469376,1719467432872,-2186.65209013,0.00013999,2]
[330469377,1719467432883,-9308.56602444,0.00013999,2]
[330469378,1719467432899,-904.96532417,0.00013999,2]
[330469379,1719467432910,-357.46371413,0.00013999,2]
[330469380,1719467432941,-854.16488114,0.00013999,2]
[330469381,1719467432952,-464.47486671,0.00013999,2]
[330469382,1719467432964,-1132.38722525,0.00013999,2]
[330469383,1719467432975,-10837.23667898,0.00013999,2]
[330469384,1719467432989,-681.39069848,0.00013999,2]
[330469387,1719467438406,-14984.39808015,0.00013999,2]
[330469394,1719467443248,-883.25918109,0.00013999,2]
[330469395,1719467443277,-4791.52473631,0.00013999,2]
[330469404,1719467446272,-1144.6138646,0.00013999,2]
[330469405,1719467447097,-1422.4370394,0.00013999,2]
[330469406,1719467461647,346.84,0.00026,120]
[330469407,1719467561080,220.02,0.00010959,2]
[330469408,1719467571777,183.35,0.00010959,2]
[330469409,1719467582275,152.79,0.00010959,2]
[330469410,1719467592755,764.0,0.00010959,2]
[330469411,1719467641860,19809.55605681,0.00010959,2]
[330469412,1719467980430,536.95,0.00010942,2]
[330469413,1719468353768,159.85756079,0.00010998,2]
[330469414,1719468389662,4259.478606,0.00011,2]
[330469416,1719468521718,-292.9447,0.00011097,2]
[330469417,1719468521747,-300.0,0.00011097,2]
[330469418,1719468521771,-440.19148756,0.00011098,2]
[330469419,1719468521793,-396.41174112,0.00011098,2]
[330469420,1719468521814,-1498.12355119,0.00011098,2]
[330469421,1719468521836,-3022.28056517,0.00011098,2]
[330469422,1719468521857,-496.1,0.00011841,2]
[330469423,1719468521881,-155.06,0.00011903,2]
[330469424,1719468521904,-5156.77,0.00012105,2]
[330469425,1719468521928,-607.52,0.00012122,2]
[330469426,1719468521952,-284.27,0.00012161,2]
[330469427,1719468521975,-1004.78,0.00012189,2]
[330469428,1719468522000,-420.0,0.00012193,2]
[330469429,1719468522023,-284.99772416,0.00012273,2]
[330469430,1719468522045,-499.99,0.00012273,2]
[330469431,1719468522070,-23890.0,0.00012289,2]
[330469432,1719468522504,-156.34983716,0.00012314,2]
[330469433,1719468522526,-523.88317692,0.00012314,2]
[330469434,1719468522549,-2282.37,0.0001233,2]
[330469435,1719468522571,-250.0,0.00012382,2]
[330469436,1719468522593,-150.0,0.00012508,2]
[330469437,1719468522614,-2000.0,0.00012526,3]
[330469438,1719468522635,-1413.82,0.00012526,2]
[330469439,1719468522657,-800.0,0.00012577,2]
[330469440,1719468522680,-321.88,0.0001265,2]
[330469441,1719468522701,-166.12,0.00012688,2]
[330469442,1719468522723,-200.0,0.000127,2]
[330469443,1719468522744,-178.72,0.00012828,2]
[330469444,1719468522768,-197.88,0.00012944,2]
[330469445,1719468522790,-1672.18,0.00012947,2]
[330469446,1719468522811,-6949.0688,0.00013056,2]
[330469447,1719468522834,-314.3193,0.000131,2]
[330469448,1719468522859,-46421.9,0.00013156,2]
[330469449,1719468522881,-9912.96,0.00013156,2]
[330469450,1719468522905,-536.95,0.00013206,2]
[330469451,1719468522928,-1602.1842,0.00013316,2]
[330469452,1719468522949,-2500.0,0.00013316,2]
[330469453,1719468522972,-1597.51632207,0.00013383,2]
[330469454,1719468522995,-587.0,0.00013398,2]
[330469455,1719468523019,-186784.97677105,0.00013416,2]
[330469456,1719468557159,-4791.5247,0.00013416,2]
[330469460,1719468632526,-378.73,0.00011155,2]
[330469461,1719468632538,-104.52,0.00011155,2]
[330469462,1719468632548,-257.23433876,0.00012955,3]
[330469463,1719468632559,-747.70566124,0.00012955,3]
[330469464,1719468632568,-69.56352838,0.00013415,2]
[330469465,1719468632580,-230.43647162,0.00013415,2]
[330469466,1719468632590,-2103.07054599,0.00013416,2]
[330469467,1719468632602,-2207.40403079,0.00013416,2]
[330469468,1719468632613,-1325.14524,0.00013416,2]
[330469469,1719468632624,-282.22174821,0.00013416,2]
[330469470,1719468632696,-289.3455407,0.00013416,2]
[330469471,1719468632708,-3499.02376926,0.00013416,2]
[330469472,1719468632719,-278.60878409,0.00013416,2]
[330469473,1719468632730,-1115.8023317,0.00013416,2]
[330469474,1719468632843,-5849.06297211,0.00013416,2]
[330469475,1719468632855,-5314.0001,0.00013416,2]
[330469476,1719468632867,-1883.8883661,0.00013416,2]
[330469477,1719468632877,-483.25,0.00013419,2]
[330469478,1719468632886,-397.0,0.00013438,2]
[330469479,1719468632896,-150.0,0.00013482,2]
[330469480,1719468632906,-990.02946469,0.00013483,2]
[330469481,1719468632916,-459.07,0.00013499,2]
[330469482,1719468632926,-290.59,0.00013699,2]
[330469483,1719468632936,-360.79,0.00013699,2]
[330469484,1719468632946,-291.87,0.00013699,2]
[330469485,1719468632955,-165.55996491,0.00013699,2]
[330469486,1719468632965,-165.55996491,0.00013749,2]
[330469487,1719468632974,-165.55996491,0.000138,2]
[330469488,1719468632984,-1257.0,0.000138,2]
[330469489,1719468632994,-2132.21,0.000138,2]
[330469490,1719468633004,-1744.55,0.000138,2]
[330469491,1719468633014,-3863.68,0.000138,2]
[330469492,1719468633023,-528.99378221,0.00013849,2]
[330469493,1719468633032,-165.55996491,0.0001385,2]
[330469494,1719468633042,-1458.82901,0.0001386,2]
[330469495,1719468633052,-1875.09210102,0.00013889,2]
[330469496,1719468633061,-336.44234257,0.00013889,2]
[330469497,1719468633072,-7500.0,0.00013889,2]
[330469498,1719468633081,-266.17183068,0.00013889,2]
[330469499,1719468633091,-548.8174,0.00013899,2]
[330469500,1719468633101,-474.4066724,0.00013899,2]
[330469501,1719468633111,-6374.25300004,0.00013899,2]
[330469502,1719468633121,-2561.5441,0.000139,2]
[330469503,1719468633130,-165.55996491,0.000139,2]
[330469504,1719468633139,-188.66683658,0.000139,2]
[330469505,1719468633149,-166.57,0.00013945,2]
[330469506,1719468633159,-150.63,0.00013945,2]
[330469507,1719468633169,-153.68,0.00013945,2]
[330469508,1719468633180,-164.7,0.00013945,2]
[330469509,1719468633190,-354.51,0.00013945,2]
[330469510,1719468633200,-152.2,0.00013945,2]
[330469511,1719468633210,-423.92,0.00013945,2]
[330469512,1719468633220,-151.63,0.00013945,2]
[330469513,1719468633230,-423.92,0.00013945,2]
[330469514,1719468633240,-150.0,0.00013945,2]
[330469515,1719468633250,-164.7,0.00013945,2]
[330469516,1719468633260,-150.0,0.00013945,2]
[330469517,1719468633278,-354.51,0.00013945,2]
[330469518,1719468633287,-150.0,0.00013945,2]
[330469519,1719468633297,-423.92,0.00013945,2]
[330469520,1719468633307,-164.7,0.00013945,2]
[330469521,1719468633319,-150.0,0.00013945,2]
[330469522,1719468633328,-150.0,0.00013945,2]
[330469523,1719468633338,-150.0,0.00013945,2]
[330469524,1719468633349,-354.51,0.00013945,2]
[330469525,1719468633359,-527.96,0.00013945,2]
[330469526,1719468633368,-527.96,0.00013945,2]
[330469527,1719468633377,-164.7,0.00013945,2]
[330469528,1719468633387,-150.0,0.00013945,2]
[330469529,1719468633396,-150.0,0.00013945,2]
[330469530,1719468633405,-423.92,0.00013945,2]
[330469531,1719468633415,-354.51,0.00013945,2]
[330469532,1719468633424,-527.45,0.00013945,2]
[330469533,1719468633434,-423.27,0.00013945,2]
[330469534,1719468633444,-164.45,0.00013945,2]
[330469535,1719468633454,-150.0,0.00013945,2]
[330469536,1719468633463,-150.0,0.00013945,2]
[330469537,1719468633473,-353.91,0.00013945,2]
[330469538,1719468633483,-184.4312977,0.00013979,2]
[330469539,1719468633592,-85135.06152159,0.00013989,2]
[330469540,1719468633605,-2756.11977575,0.00013989,2]
[330469541,1719468633665,-6250.5055144,0.00013989,2]
[330469542,1719468633676,-603.38328281,0.00013989,2]
[330469553,1719468638448,-384.2290936,0.00013989,2]
[330469554,1719468638459,-255.53745705,0.00013989,2]
[330469555,1719468638470,-2674.86820285,0.00013989,2]
[330469556,1719468638481,-434.55000021,0.00013989,2]
[330469557,1719468638782,-4207.32988912,0.00013989,2]
[330469558,1719468638793,-2109.83826179,0.00013989,2]
[330469559,1719468638804,-159563.58443745,0.00013989,2]
[330469560,1719468638816,-12614.62137561,0.00013989,2]
[330469561,1719468638827,-2726.77650109,0.00013989,2]
[330469562,1719468638839,-657.76259654,0.00013989,2]
[330469563,1719468638850,-311.94663732,0.00013989,2]
[330469564,1719468638886,-3191.41997605,0.00013989,2]
[330469565,1719468638898,-1777.0,0.00013989,2]
[330469567,1719468640583,-611.67487492,0.00013989,2]
[330469568,1719468640730,-1104.33346155,0.00013989,2]
[330469572,1719468641403,-3.765e-05,0.00013989,2]
[330469573,1719468641414,-131253.0198743,0.00013989,2]
[330469574,1719468641426,-129169.06990223,0.00013989,2]
[330469575,1719468641437,-369.06453289,0.00013989,2]
[330469576,1719468641447,-412.61839352,0.00013989,2]
[330469577,1719468641457,-159.72076583,0.00013999,2]
[330469578,1719468641466,-1806.36883423,0.00013999,2]
[330469579,1719468641476,-41830.13769693,0.00014,2]
[330469585,1719468643648,-271350.83425888,0.00014,2]
[330469586,1719468643660,-673.17522108,0.00014,2]
[330469587,1719468643672,-1714.07249422,0.00014,2]
[330469588,1719468643732,-328.04999985,0.00014,2]
[330469589,1719468643864,-660.79745099,0.00014,2]
[330469593,1719468658659,2000.0,0.00025,60]
[330469599,1719469288752,304.29265397,0.00025,60]
[330469604,1719469816543,434.92,0.00010805,2]
[330469623,1719469832164,-300.0,0.00011097,2]
[330469625,1719469832173,-266.17183068,0.00011098,2]
[330469627,1719469832183,-122.90982762,0.00011098,2]
[330469633,1719469832233,-1217.54101305,0.00011098,2]
[330469636,1719469832243,-2382.51686404,0.00011098,2]
[330469637,1719469832253,-1628.76082089,0.00011098,2]
[330469638,1719469832262,-956.26012045,0.00011098,2]
[330469639,1719469832272,-2472.99404672,0.00011199,2]
[330469640,1719469832285,-34622.30215987,0.00011199,2]
[330469641,1719469832296,-420.0,0.00012193,2]
[330469642,1719469832305,-250.0,0.00012647,2]
[330469643,1719469832315,-379.47,0.00012702,2]
[330469644,1719469832324,-250.0,0.00012723,2]
[330469645,1719469832334,-1012.69,0.00012746,2]
[330469646,1719469832344,-200.0,0.00012801,2]
[330469647,1719469832353,-158.47,0.00012823,2]
[330469648,1719469832362,-499.99,0.00012823,2]
[330469649,1719469832371,-999.99,0.00012823,2]
[330469650,1719469832380,-150.99,0.00012863,2]
[330469651,1719469832389,-2000.0,0.00012923,3]
[330469652,1719469832399,-434.92,0.00013069,2]
[330469653,1719469832408,-318.46,0.00013316,2]
[330469654,1719469832418,-296.49,0.00013329,2]
[330469655,1719469832427,-164.0,0.00013398,2]
[330469656,1719469832436,-2238.595092,0.00013477,2]
[330469657,1719469832445,-155.16151155,0.00013516,2]
[330469658,1719469832455,-372.93,0.00013699,2]
[330469659,1719469832464,-269.82,0.00013699,2]
[330469660,1719469832473,-544.95,0.00013699,2]
[330469661,1719469832483,-260.37485471,0.00013736,2]
[330469662,1719469832492,-390.06936447,0.00013752,2]
[330469663,1719469832502,-2238.59509199,0.00013789,2]
[330469664,1719469832511,-6281.95307244,0.0001379,2]
[330469665,1719469832521,-1722.14994176,0.00013799,2]
[330469666,1719469832531,-267.09157575,0.00013802,2]
[330469667,1719469832539,-422.97382862,0.0001388,2]
[330469668,1719469832549,-500.0,0.00013888,2]
[330469669,1719469832558,-70607.7142,0.00013889,2]
[330469670,1719469832567,-37793.2604,0.00013889,2]
[330469671,1719469832577,-155.21578132,0.00013889,2]
[330469672,1719469832586,-7500.0,0.00013899,2]
[330469673,1719469832596,-164.97301808,0.00013899,2]
[330469674,1719469832605,-211.61027748,0.00013899,2]
[330469675,1719469832615,-211.59117453,0.00013899,2]
[330469676,1719469832624,-3190.9254729,0.000139,2]
[330469677,1719469832633,-2490.1662,0.000139,2]
[330469678,1719469832642,-174.01036978,0.000139,2]
[330469679,1719469832652,-13332.8877,0.000139,2]
[330469680,1719469832665,-197.03312099,0.000139,2]